Workbook

Sheet Sheet1
B1: Date or release | C1: Structure Determination method | D1: Resolution | E1: No. of mols in asu | F1: No. of residues in a.u. | G1: Simbad success | H1: SIMBAD solution stage | I1: SIMBAD run time (hours) | J1: AMORE Zscore, rank | K1: % seqid to target | L1: map CC (rr 100) | M1: Gesamt RMSD | N1: Gesamt Qscore | O1: Gesamt Coverage | P1: No. of residues in search model | Q1: model size/target size | R1: MoRDA NGM (min2=0.3) | S1: MoRDa DB Nearest match based on RMSD | T1: MoRDa Nearest QScore | U1: AMORE Zscore, rank of nearest Gesamt match Morda | V1: All PDB NGM (min2=0.3) | W1: All PDB NGM RMSD
A2: 5B3T | B2: 2017-02-15 | C2: SIRAS | D2: 2.1 | E2: 2 | F2: 636 | G2: No | H2: N/A | I2: 8.67 | J2: N/A | K2: N/A | L2: N/A | Q2: =P2/F2 -> 0 | R2: 4hadA_0 | S2: 2.6011 | T2: 0.2173 | U2: 4.3, 27493 | V2: 3rc1_A | W2: 2.3439
A3: 5U2P | B3: 2017-02-22 | C3: SAD | D3: 1.76 | E3: 1 | F3: 381 | G3: No | H3: N/A | I3: 7.56 | J3: N/A | K3: N/A | L3: N/A | Q3: 0 | R3: 3qufA_2 | S3: 2.4776 | T3: 0.2173 | U3: 4.2, 25595 | V3: 3oo9_A | W3: 2.7674
A4: 5IAU | B4: 2017-03-01 | C4: SAD | D4: 1.78 | E4: 5 | F4: 2305 | G4: No | H4: N/A | I4: 19.11 | J4: N/A | K4: N/A | L4: N/A | Q4: 0 | R4: 3gvzA_0 | S4: 2.3006 | T4: 0.056 | U4: 3.9, 28576 | V4: 3gvz_A | W4: 2.3006
A5: 5FRK | B5: 2017-02-15 | C5: MAD | D5: 2.12 | E5: 2 | F5: 274 | G5: No | H5: N/A | I5: 10.46 | J5: N/A | K5: N/A | L5: N/A | Q5: 0 | R5: 1jyoA_0 | S5: 2.2078 | T5: 0.2364 | U5: 3.4, 68115 | V5: 1jyo_C | W5: 2.0649
A6: 5JDK | B6: 2017-02-22 | C6: SAD | D6: 1 | E6: 1 | F6: 104 | G6: No | H6: N/A | I6: 13.09 | J6: N/A | K6: N/A | L6: N/A | Q6: 0 | R6: 2ckxA_0 | S6: 1.7584 | T6: 0.4225 | U6: 4.2, 16807 | V6: 2ckx_A | W6: 1.7584
A7: 5HXG | B7: 2017-02-15 | C7: MR (Null) | D7: 2 | E7: 4 | F7: 552 | G7: No | H7: N/A | I7: 13.64 | J7: N/A | K7: N/A | L7: N/A | Q7: 0 | R7: 3tlqA_1 | S7: 1.6131 | T7: 0.2621 | U7: 3.9, 42907 | V7: 4es4_E | W7: 1.8098
A8: 5UBA | B8: 2017-02-22 | C8: MR (1XPI) | D8: 1.54 | E8: 1 | F8: 262 | G8: No | H8: N/A | I8: 10.3 | J8: N/A | K8: N/A | L8: N/A | Q8: 0 | R8: 2i82A_1 | S8: 1.3246 | T8: 0.4817 | U8: 4.7, 8857 | V8: 1v9k_B | W8: 1.6298
A9: 5KHL | B9: 2017-02-22 | C9: MR (2RG7) | D9: 2.4 | E9: 1 | F9: 257 | G9: No | H9: N/A | I9: 6.2 | J9: N/A | K9: N/A | L9: N/A | Q9: 0 | R9: 2r7aA_1 | S9: 1.1204 | T9: 0.3832 | U9: 3.0, 61008 | V9: 2rg7_D | W9: 1.6075
A10: 5GRH | B10: 2017-02-15 | C10: MR (1T09) | D10: 2.8 | E10: 2 | F10: 662 | G10: Yes (3blvA_1) | H10: full | I10: 10.87 | J10: 5.6 (35) | K10: 0.44 | L10: 0.8298 | M10: 1.078 | N10: 0.405 | O10: 305/662 | P10: 300 | Q10: 0.4531722054 | R10: 3blvA_1 | S10: 1.0781 | T10: 0.4054 | U10: 5.6, 35 | V10: 3blw_G | W10: 1.0996
A11: 5HSM | B11: 2017-02-01 | C11: SIRAS | D11: 1.9 | E11: 1 | F11: 131 | G11: No | H11: N/A | I11: 6.1 | J11: N/A | K11: N/A | L11: N/A | Q11: 0 | R11: 3fm5A_1 | S11: 0.9705 | T11: 0.546 | U11: 4.0, 24045 | V11: 4l9n_A | W11: 1.5753
A12: 5LNL | B12: 2017-02-15 | C12: MR (3EMI) | D12: 3.3 | E12: 9 (Cplx) | F12: 1178 | G12: No | H12: N/A | I12: 15.29 | J12: N/A | K12: N/A | L12: N/A | Q12: 0 | R12: 3emfA_0 | S12: 0.9141 | T12: 0.0264 | U12: 4.2, 11997 | V12: 3emi_A | W12: 0.6961
A13: 5JFM | B13: 2017-03-01 | C13: MR (4C3S) | D13: 2.52 | E13: 8 (4+4) | F13: 3540 | G13: No | H13: N/A | I13: 19.23 | J13: N/A | K13: N/A | L13: N/A | Q13: 0 | R13: 4c3sA_1 | S13: 0.8266 | T13: 0.0496 | U13: 4.3,13512 | V13: 5dru_A | W13: 0.8581
A14: 5LSW | B14: 2017-02-15 | C14: MR (2FV2) | D14: 2.15 | E14: 4 | F14: 588 | G14: Yes (4ct7B_0) | H14: full | I14: 13.23 | J14: 11.4 (3) | K14: 0.99 | L14: 0.9182 | M14: 0.654 | N14: 0.432 | O14: 268/588 | P14: 270 | Q14: 0.4591836735 | R14: 4cruB_0 | S14: 0.6748 | T14: 0.4338 | U14: 12.1, 1 | V14: 4crv_B | W14: 0.6961
A15: 5J7S | B15: 2017-02-15 | C15: MR (4O91) | D15: 2.37 | E15: 1 | F15: 279 | G15: Yes (4gs6) | H15: lattice | I15: 2.18 | J15: N/A | K15: 1 | L15: 0.9524 | M15: 0.777 | N15: 0.87 | O15: 276/279 | P15: 294 | Q15: 1.053763441 | R15: 2evaA_2 | S15: 0.5952 | T15: 0.6726 | U15: N/A | V15: 5e7r_A | W15: 0.5688
A16: 5UQF | B16: 2017-03-01 | C16: MR (4RJ7) | D16: 2.73 | E16: 3 | F16: 1064 | G16: Yes (4qj1A_1) | H16: full | I16: 21.82 | J16: 5.5 (170) | K16: 0.65 | L16: 0.6115 | M16: 0.591 | N16: 0.623 | O16: 229/354 | P16: 229 | Q16: 0.2152255639 | R16: 1vrdA_1 | S16: 0.5936 | T16: 0.2153 | U16: 4.9, 1202 | V16: 4mz1_B | W16: 0.2298
A17: 5T70 | B17: 2017-03-01 | C17: MR (3VH8) | D17: 2.1 | E17: 4 | F17: 672 | G17: Yes (3WUW) | H17: lattice | I17: 0.2 | J17: N/A | K17: 0.99 | L17: 0.9555 | M17: 0.62 | N17: 0.918 | O17: 653/672 | P17: 663 | Q17: 0.9866071429 | R17: 3l3iA_1 | S17: 0.5577 | T17: 0.2603 | U17: N/A | V17: 5b39_B | W17: 0.4227
A18: 5LU3 | B18: 2017-02-15 | C18: SAD | D18: 1.5 | E18: 1 | F18: 88 | G18: Yes (5e9oA_0) | H18: full | I18: 4.82 | J18: 7.0 (4) | K18: 0.76 | L18: 0.9017 | M18: 0.529 | N18: 0.893 | O18: 83/88 | P18: 85 | Q18: 0.9659090909 | R18: 5e9oA_0 | S18: 0.529 | T18: 0.8932 | U18: 7.0, 4 | V18: 5e9o_C | W18: 0.5445
A19: 5GTT | B19: 2017-03-01 | C19: SAD | D19: 2.01 | E19: 1 | F19: 417 | G19: Yes (5H03) | H19: lattice | I19: 0.18 | J19: N/A | K19: 1 | L19: 0.9563 | M19: 0.797 | N19: 0.934 | O19: 417/417 | P19: 417 | Q19: 1 | R19: 5h03A_2 | S19: 0.5252 | T19: 0.4747 | U19: N/A | V19: 5h04_A | W19: 0.464
A20: 5UCA | B20: 2017-02-15 | C20: MR (5UC8) | D20: 2.12 | E20: 4 | F20: 839 | G20: Yes (2q32A_0) | H20: full | I20: 11.23 | J20: 14.0 (1) | K20: 0.99 | L20: 0.953 | M20: 0.415 | N20: 0.242 | O20: 210/839 | P20: 213 | Q20: 0.2538736591 | R20: 2q32A_0 | S20: 0.4147 | T20: 0.2421 | U20: 14.0, 1 | V20: 2q32_A | W20: 0.4147
A21: 5AYL | B21: 2017-02-15 | C21: MR (3APO) | D21: 2.4 | E21: 1 (multi-domain) | F21: 743 | G21: No | H21: N/A | I21: 10.76 | J21: N/A | K21: N/A | L21: N/A | Q21: 0 | R21: 3apoA_2 | S21: 0.3967 | T21: 0.1402 | U21: 3.5, 57656 | V21: 3apo_A | W21: 2.2196
A22: 5JQI | B22: 2017-02-22 | C22: MR (3JWN) | D22: 1.96 | E22: 8 | F22: 1157 | G22: Yes (3jwnH_2) | H22: full | I22: 12.97 | J22: 10.6 (1) | K22: 1 | L22: 0.6851 | M22: 0.614 | N22: 0.132 | O22: 159/1157 | P22: 159 | Q22: 0.1374243734 | R22: 4xo9A_1 | S22: 0.3939 | T22: 0.1351 | U22: 4.5, 19497 | V22: 4xoa_C | W22: 0.3272
A23: 5UOU | B23: 2017-02-15 | C23: SAD | D23: 1.5 | E23: 1 | F23: 147 | G23: Yes (3o7hA_2) | H23: full | I23: 5.93 | J23: 8.3 (1) | K23: 1 | L23: 0.7601 | M23: 0.388 | N23: 0.603 | O23: 92/150 | P23: 92 | Q23: 0.6258503401 | R23: 3o7hA_2 | S23: 0.388 | T23: 0.6032 | U23: 8.3, 1 | V23: 3o7i_A | W23: 0.3688
A24: 5LGZ | B24: 2017-02-15 | C24: MR (1H50) | D24: 1.5 | E24: 1 | F24: 363 | G24: Yes (3p67) | H24: lattice | I24: 0.63 | J24: N/A | K24: 0.99 | L24: 0.942 | M24: 0.271 | N24: 0.989 | O24: 362/363 | P24: 362 | Q24: 0.9972451791 | R24: 3p8jA_1 | S24: 0.343 | T24: 0.9164 | U24: N/A | V24: 3p67_A | W24: 0.2707
A25: 5MG0 | B25: 2017-02-22 | C25: MR (2O9C) | D25: 1.65 | E25: 1(serial) | F25: 332 | G25: Yes (4Y3I) | H25: lattice | I25: 0.24 | J25: N/A | K25: 0.9 | L25: 0.9652 | M25: 0.451 | N25: 0.957 | O25: 317/322 | P25: 319 | Q25: 0.9608433735 | R25: 4q0hA_1 | S25: 0.2979 | T25: 0.4859 | U25: N/A | V25: 4y3i_A | W25: 0.4534
A26: 5MG1 | B26: 2017-02-22 | C26: MR (2O9C & 4Q0J) | D26: 3.3 | E26: 1 | F26: 489 | G26: Yes (4Q0J) | H26: lattice | I26: 0.76 | J26: N/A | K26: 1 | L26: 0.9814 | M26: 0.88 | N26: 0.902 | O26: 487/489 | P26: 495 | Q26: 1.012269939 | R26: 4q0jA_1 | S26: 0.2878 | T26: 0.3202 | U26: N/A | V26: 4q0j_A | W26: 0.9004

Sheet Sheet2
A1: Target | B1: Gesamt MoRDa closest model (by Qscore) | C1: Gesamt MoRDa closest model RMSD | D1: Gesamt MoRDa closest model Qscore | E1: No. of mols in asu | F1: % representation of target by search model | G1: Rfactor after 200 jelly body cycles All Atom | H1: Rfree 200 jelly body cycles All Atom | I1: Rfactor after 200 jelly body cycles Polyalanine | J1: Rfree 200 jelly body cycles Polyalanine | K1: Rfactor after 1000 jelly body cycles | L1: Rfree 1000 jelly body cycles | M1: Rfactor after 1000 jelly body cycles Polyalanine | N1: Rfree 1000 jelly body cycles Polyalanine | O1: MPE 200 cycles AA | P1: MPE 200 cycles Polyalanine | Q1: MPE 1000 cycles AA | R1: MPE 1000 cycles Polyalanine
A2: 5FRK | B2: 1jyoA_0 | C2: 2.2078 | D2: 0.2364 | E2: 2 | F2: =260/289 -> 0.8996539792 | G2: 0.545 | H2: 0.5722 | I2: 0.5367 | J2: 0.5906 | K2: 0.545 | L2: 0.5721 | M2: 0.5367 | N2: 0.5906 | O2: 85.371 | P2: 80.9134 | Q2: 85.371 | R2: 80.9136
A3: 5U2P | B3: 3qufA_2 | C3: 2.4776 | D3: 0.2173 | E3: 1 | F3: =377/381 -> 0.9895013123 | G3: 0.5394 | H3: 0.5578 | I3: 0.543 | J3: 0.5743 | K3: 0.5347 | L3: 0.552 | M3: 0.543 | N3: 0.5743 | O3: 86.0019 | P3: 85.5569 | Q3: 85.975 | R3: 85.5571
A4: 5IAU | B4: 3gvzA_0 | C4: 2.3006 | D4: 0.056 | E4: 5 | F4: =1280/2305 -> 0.5553145336 | G4: 0.5535 | H4: 0.5575 | I4: 0.5563 | J4: 0.5667 | K4: 0.5535 | L4: 0.5575 | M4: 0.5563 | N4: 0.5667 | O4: 87.9317 | P4: 87.7052 | Q4: 87.9312 | R4: 87.705
A5: 5JDK | B5: 2ckxA_0 | C5: 1.7584 | D5: 0.4225 | E5: 1 | F5: =83/104 -> 0.7980769231 | G5: 0.5577 | H5: 0.5853 | I5: 0.5568 | J5: 0.5634 | M5: 0.5568 | N5: 0.5633 | O5: 89.1857 | P5: 89.3075 | R5: 89.3095
A6: 5B3T | B6: 4hadA_0 | C6: 2.6011 | D6: 0.2173 | E6: 2 | F6: =634/636 -> 0.9968553459 | G6: 0.5397 | H6: 0.568 | I6: 0.5237 | J6: 0.5588 | K6: 0.5309 | L6: 0.5658 | M6: 0.5143 | N6: 0.5602 | O6: 88.5078 | P6: 86.3022 | Q6: 88.2745 | R6: 86.6564
A7: 5KHL | B7: 2r7aA_1 | C7: 1.1204 | D7: 0.3832 | E7: 1 | F7: =122/257 -> 0.4747081712 | G7: 0.4778 | H7: 0.5207 | I7: 0.5094 | J7: 0.559 | K7: 0.4614 | L7: 0.5257 | M7: 0.5038 | N7: 0.558 | O7: 67.1759 | P7: 64.953 | Q7: 66.8971 | R7: 65.4148
A8: 5AYL | B8: 3apoA_2 | C8: 0.3967 | D8: 0.1402 | E8: 1 (6+1 domains) | F8: =106/743 -> 0.1426648721 | G8: 0.5146 | H8: 0.5435 | I8: 0.5315 | J8: 0.547 | K8: 0.5146 | L8: 0.5437 | M8: 0.5311 | N8: 0.5475 | O8: 76.7394 | P8: 79.6344 | Q8: 76.541 | R8: 79.4787
A9: 5LNL | B9: 3emfA_0 | C9: 0.9141 | D9: 0.0264 | E9: 9 (Cplx) | F9: =1017/1178 -> 0.863327674 | G9: 0.5269 | H9: 0.5186 | I9: 0.534 | J9: 0.5457 | K9: 0.5039 | L9: 0.5109 | M9: 0.5436 | N9: 0.5307 | O9: 85.6916 | P9: 84.3516 | Q9: 86.3508 | R9: 85.8553
A10: 5MG1 | B10: 4q0jA_1 | C10: 0.2878 | D10: 0.3202 | E10: 1 | F10: =158/489 -> 0.3231083845 | G10: 0.468 | H10: 0.4784 | I10: 0.5088 | J10: 0.5035 | K10: 0.4655 | L10: 0.4814 | M10: 0.5077 | N10: 0.5069 | O10: 51.4814 | P10: 60.3777 | Q10: 51.9736 | R10: 60.472
A11: 5HSM | B11: 3fm5A_1 | C11: 0.9705 | D11: 0.546 | E11: 1 | F11: =81/131 -> 0.6183206107 | G11: 0.4877 | H11: 0.5055 | I11: 0.486 | J11: 0.5078 | K11: 0.4757 | L11: 0.5079 | M11: 0.4812 | N11: 0.5005 | O11: 59.0244 | P11: 55.7836 | Q11: 59.3367 | R11: 55.9447
A12: 5JQI | B12: 4xo9A_1 | C12: 0.3939 | D12: 0.1351 | E12: 8 | F12: =636/1157 -> 0.5496974935 | G12: 0.4024 | H12: 0.4376 | I12: 0.4507 | J12: 0.4805 | K12: 0.4002 | L12: 0.4391 | M12: 0.4499 | N12: 0.481 | O12: 51.9537 | P12: 59.8473 | Q12: 52.5744 | R12: 60.3458
A13: 5MG0 | B13: 4q0hA_1 | C13: 0.2979 | D13: 0.4859 | E13: 1 | F13: =158/322 -> 0.4906832298 | G13: 0.4039 | H13: 0.4234 | I13: 0.4591 | J13: 0.4805 | K13: 0.4039 | L13: 0.4234 | M13: 0.4591 | N13: 0.4805 | O13: 43.9187 | P13: 52.3935 | Q13: 43.9189 | R13: 52.3933
A14: 5GTT | B14: 5h03A_2 | C14: 0.5252 | D14: 0.4747 | E14: 1 | F14: =406/417 -> 0.9736211031 | G14: 0.2889 | H14: 0.3517 | I14: 0.4062 | J14: 0.4636 | K14: 0.2798 | L14: 0.3549 | M14: 0.4033 | N14: 0.4676 | O14: 31.641 | P14: 43.3546 | Q14: 31.1352 | R14: 43.8685
A15: 5UOU | B15: 3o7hA_2 | C15: 0.388 | D15: 0.6032 | E15: 1 | F15: =92/150 -> 0.6133333333 | G15: 0.4029 | H15: 0.4131 | I15: 0.4618 | J15: 0.4629 | K15: 0.4029 | L15: 0.4132 | M15: 0.4618 | N15: 0.4629 | O15: 44.774 | P15: 55.3064 | Q15: 44.7739 | R15: 55.3012
A16: 5UQF | B16: 1vrdA_1 | C16: 0.5936 | D16: 0.2153 | E16: 3 | F16: =726/1064 -> 0.6823308271 | G16: 0.41 | H16: 0.4374 | I16: 0.4515 | J16: 0.4603 | K16: 0.4044 | L16: 0.4374 | M16: 0.4485 | N16: 0.4622 | O16: 48.0306 | P16: 52.586 | Q16: 48.0665 | R16: 52.9016
A17: 5T70 | B17: 3l3iA_1 | C17: 0.5577 | D17: 0.2603 | E17: 4 | F17: =380/672 -> 0.5654761905 | G17: 0.3809 | H17: 0.4107 | I17: 0.4385 | J17: 0.4615 | K17: 0.3772 | L17: 0.4151 | M17: 0.4377 | N17: 0.4616 | O17: 45.9326 | P17: 53.3155 | Q17: 47.2145 | R17: 53.6222
A18: 5HXG | B18: 3tlqA_1 | C18: 1.6131 | D18: 0.2621 | E18: 4 (2+2) | F18: =412/552 -> 0.7463768116 | G18: 0.4583 | H18: 0.5103 | I18: 0.4563 | J18: 0.4678 | K18: 0.4218 | L18: 0.4822 | M18: 0.446 | N18: 0.4595 | O18: 56.8014 | P18: 50.1864 | Q18: 51.6274 | R18: 49.2335
A19: 5JFM | B19: 4c3sA_1 | C19: 0.8266 | D19: 0.0496 | E19: 8 (4+4) | F19: =3000/3540 -> 0.8474576271 | G19: 0.3462 | H19: 0.4039 | I19: 0.4075 | J19: 0.4549 | K19: 0.3295 | L19: 0.4059 | M19: 0.4061 | N19: 0.4568 | O19: 45.036 | P19: 50.7758 | Q19: 47.6999 | R19: 50.9831
A20: 5UBA | B20: 2i82A_1 | C20: 1.3246 | D20: 0.4817 | E20: 1 | F20: =162/261 -> 0.6206896552 | G20: 0.4463 | H20: 0.4583 | I20: 0.4631 | J20: 0.4587 | K20: 0.4382 | L20: 0.4506 | M20: 0.46 | N20: 0.4551 | O20: 50.6309 | P20: 52.9319 | Q20: 48.7135 | R20: 52.4393
A21: 5J7S | B21: 2evaA_2 | C21: 0.5952 | D21: 0.6726 | E21: 1 | F21: =201/279 -> 0.7204301075 | G21: 0.3096 | H21: 0.3279 | I21: 0.4459 | J21: 0.4529 | K21: 0.3059 | L21: 0.3274 | M21: 0.4408 | N21: 0.4504 | O21: 28.163 | P21: 47.8043 | Q21: 28.1231 | R21: 48.6147
A22: 5LSW | B22: 4cruB_0 | C22: 0.6748 | D22: 0.4338 | E22: 4 | F22: =540/588 -> 0.9183673469 | G22: 0.2658 | H22: 0.3064 | I22: 0.4004 | J22: 0.4356 | K22: 0.2586 | L22: 0.3072 | M22: 0.399 | N22: 0.4379 | O22: 28.4353 | P22: 42.4837 | Q22: 29.1245 | R22: 42.8657
A23: 5LU3 | B23: 5e9oA_0 | C23: 0.529 | D23: 0.8932 | E23: 1 | F23: =85/88 -> 0.9659090909 | G23: 0.3105 | H23: 0.3284 | I23: 0.4256 | J23: 0.4332 | K23: 0.3 | L23: 0.3224 | M23: 0.4254 | N23: 0.433 | O23: 27.6489 | P23: 42.401 | Q23: 26.1483 | R23: 42.3921
A24: 5LGZ | B24: 3p8jA_1 | C24: 0.343 | D24: 0.9164 | E24: 1 | F24: =337/363 -> 0.9283746556 | G24: 0.2891 | H24: 0.3123 | I24: 0.4113 | J24: 0.4262 | M24: 0.4113 | N24: 0.4262 | O24: 28.626 | P24: 45.1073 | R24: 45.1074
A25: 5UCA | B25: 2q32A_0 | C25: 0.4147 | D25: 0.2421 | E25: 4 | F25: =1 -> 1 | G25: 0.2338 | H25: 0.2732 | I25: 0.39 | J25: 0.419 | K25: 0.2279 | L25: 0.2745 | M25: 0.3887 | N25: 0.4207 | O25: 25.6517 | P25: 41.9988 | Q25: 25.1707 | R25: 42.2102
A26: 5GRH | B26: 3blvA_1 | C26: 1.0781 | D26: 0.4054 | E26: 2 | F26: =614/662 -> 0.9274924471 | G26: 0.315 | H26: 0.3583 | I26: 0.3628 | J26: 0.3977 | K26: 0.2921 | L26: 0.3491 | M26: 0.3564 | N26: 0.4011 | O26: 41.9174 | P26: 48.4931 | Q26: 40.147 | R26: 48.8215
